bitfinex-derivatives/quotes_BTCF0:USTF0_20241005
["timestamp","ask_amount","ask_price","bid_price","bid_amount"]
[1728138881512,0.539079,62186.0,62185.0,0.32743]
[1728138884017,0.178279,62186.0,62185.0,0.32743]
[1728138887313,1.260719,62186.0,62185.0,0.32743]
[1728138887711,1.65258432,62186.0,62185.0,0.32743]
[1728138888117,1.53258432,62186.0,62185.0,0.32743]
[1728138888318,1.65258432,62186.0,62185.0,0.32743]
[1728138889126,1.621519,62186.0,62185.0,0.32743]
[1728138892731,1.021519,62186.0,62185.0,0.32743]
[1728138894526,0.901519,62186.0,62185.0,0.32743]
[1728138894729,1.021519,62186.0,62185.0,0.32743]
[1728138895023,0.660719,62186.0,62185.0,0.32743]
[1728138895234,1.021519,62186.0,62185.0,0.32743]
[1728138895720,0.660719,62186.0,62185.0,0.32743]
[1728138895921,0.539079,62186.0,62185.0,0.32743]
[1728138896125,0.57014453,62186.0,62185.0,0.32743]
[1728138898641,0.45014453,62186.0,62185.0,0.44743]
[1728138899227,0.45014314,62186.0,62185.0,0.44743]
[1728138899632,0.419079,62186.0,62185.0,0.44743]
[1728138901529,0.45014172,62186.0,62185.0,0.44743]
[1728138902732,0.57014172,62186.0,62185.0,0.32743]
[1728138904135,0.539079,62186.0,62185.0,0.32743]
[1728138906143,0.419079,62186.0,62185.0,0.32743]
[1728138906832,0.419079,62186.0,62185.0,0.44743]
[1728138906833,0.3129,62186.0,62185.0,0.44743]
[1728138907437,0.056278,62188.0,62185.0,0.44743]
[1728138908642,0.056278,62188.0,62185.0,0.44143]
[1728138908834,0.057278,62188.0,62185.0,0.44743]
[1728138909346,0.058278,62188.0,62185.0,0.45343]
[1728138909741,0.002,62188.0,62185.0,0.45343]
[1728138910045,0.056279,62187.0,62186.0,0.0307]
[1728138910432,0.176279,62187.0,62186.0,0.0307]
[1728138911242,0.24671961,62187.0,62186.0,0.0357]
[1728138911631,0.176279,62187.0,62186.0,0.0357]
[1728138911838,0.24671962,62187.0,62186.0,0.0357]
[1728138913036,0.24671962,62187.0,62186.0,0.0407]
[1728138913037,0.24771962,62187.0,62186.0,0.0407]
[1728138913442,0.12771962,62187.0,62186.0,0.0407]
[1728138915545,0.07144062,62187.0,62186.0,0.0407]
[1728138915846,0.07144062,62187.0,62186.0,0.128079]
[1728138915847,0.03206206,62187.0,62186.0,0.128079]
[1728138917237,0.03206206,62187.0,62186.0,0.0718]
[1728138917442,0.001,62187.0,62186.0,0.0718]
[1728138917640,0.03206013,62187.0,62186.0,0.0718]
[1728138919255,0.001,62187.0,62186.0,0.0718]
[1728138920547,0.057279,62187.0,62186.0,0.0718]
[1728138923343,0.057279,62187.0,62186.0,0.01]
[1728138929255,0.08834027,62187.0,62186.0,0.01]
[1728138930656,0.057279,62187.0,62186.0,0.01]
[1728138933556,0.08834027,62187.0,62186.0,0.01]
[1728138934449,0.12771783,62187.0,62186.0,0.01]
[1728138935753,0.18491721,62190.0,62186.0,0.01]
[1728138935754,0.0112,62190.0,62186.0,1.4532]
[1728138935960,0.0112,62190.0,62189.0,0.176277]
[1728138936168,0.0037,62194.0,62193.0,0.056273]
[1728138936455,0.056266,62202.0,62193.0,0.176273]
[1728138936456,0.01731271,62199.0,62193.0,0.176273]
[1728138936653,0.01361271,62199.0,62197.0,0.12]
[1728138936854,0.00241271,62199.0,62197.0,0.12]
[1728138938750,0.3628,62198.0,62197.0,0.12]
[1728138939467,0.3658,62198.0,62197.0,0.176269]
[1728138944867,0.005,62198.0,62197.0,0.176269]
[1728138948763,0.03432471,62198.0,62197.0,0.176269]
[1728138953972,0.06538003,62198.0,62197.0,0.176269]
[1728138954171,0.06538003,62198.0,62197.0,0.056269]
[1728138954372,0.09678003,62198.0,62197.0,0.056269]
[1728138954579,0.12828003,62198.0,62197.0,0.056269]
[1728138954778,0.15968003,62198.0,62197.0,0.056269]
[1728138955578,0.15968003,62198.0,62193.0,0.3608]
[1728138955779,0.03105532,62197.0,62194.0,0.056272]
[1728138956182,0.12862471,62198.0,62194.0,0.056272]
[1728138956984,0.12662471,62198.0,62194.0,0.056272]
[1728138957281,0.12362471,62198.0,62194.0,0.056272]
[1728138958176,0.12362471,62198.0,62194.0,0.057272]
[1728138958483,0.12362471,62198.0,62194.0,0.058272]
[1728138959088,0.12362471,62198.0,62195.0,0.056271]
[1728138960378,0.12362471,62198.0,62195.0,0.057271]
[1728138964578,0.03105646,62197.0,62195.0,0.057271]
[1728138964784,0.17989371,62198.0,62195.0,0.057271]
[1728138964983,0.03105671,62197.0,62195.0,0.057271]
[1728138965183,0.17989371,62198.0,62195.0,0.057271]
[1728138965382,0.03105671,62197.0,62195.0,0.057271]
[1728138965582,0.03105671,62196.0,62195.0,0.056271]
[1728138965783,0.03105671,62196.0,62195.0,0.057271]
[1728138966492,0.17989371,62198.0,62195.0,0.057271]
[1728138966683,0.03105566,62197.0,62195.0,0.057271]
[1728138966886,0.17989371,62198.0,62195.0,0.057271]
[1728138967085,0.03105601,62197.0,62195.0,0.057271]
[1728138967283,0.17989371,62198.0,62195.0,0.057271]
[1728138967484,0.0310558,62197.0,62195.0,0.057271]
[1728138967786,0.17989371,62198.0,62195.0,0.057271]
[1728138968088,0.03105601,62197.0,62195.0,0.057271]
[1728138968281,0.17989371,62198.0,62195.0,0.057271]
[1728138968483,0.03105582,62197.0,62195.0,0.056271]
[1728138968785,0.17989371,62198.0,62195.0,0.057271]
[1728138968986,0.03105587,62197.0,62195.0,0.001]
[1728138969185,0.17989371,62198.0,62196.0,0.05627]
[1728138969487,0.03105548,62197.0,62196.0,0.05627]
[1728138971382,0.07042617,62197.0,62196.0,0.05627]
[1728138971581,0.07142617,62197.0,62196.0,0.05627]
[1728138975989,0.07142641,62197.0,62196.0,0.05627]
[1728138979085,0.07142597,62197.0,62196.0,0.05627]
[1728138979388,0.001,62197.0,62196.0,0.05627]
[1728138980295,0.001,62197.0,62196.0,0.17627]
[1728138986292,0.07142512,62197.0,62196.0,0.17627]
[1728138989501,0.056272,62195.0,62193.0,0.056273]
[1728138989702,0.056272,62195.0,62191.0,0.3608]
[1728138989703,0.056274,62192.0,62191.0,0.3608]
[1728138989892,0.056274,62192.0,62187.0,0.0037]
[1728138989893,0.12,62192.0,62187.0,0.0037]
[1728138990197,0.07042512,62191.0,62186.0,0.12]
[1728138990390,0.03936989,62191.0,62186.0,0.12]
[1728138990587,0.17574067,62194.0,62188.0,0.12]
[1728138990588,0.07042512,62190.0,62188.0,0.12]
[1728138990792,0.07042512,62189.0,62188.0,0.176278]
[1728138991704,0.03105523,62189.0,62188.0,0.176278]
[1728138991895,0.001,62191.0,62189.0,0.056277]
[1728138992202,0.03105723,62190.0,62189.0,0.056277]
[1728138994100,0.03105723,62190.0,62189.0,0.062277]
[1728138994407,0.057275,62191.0,62189.0,0.062277]
[1728138994598,0.001,62190.0,62189.0,0.063277]
[1728138994796,0.002,62190.0,62189.0,0.069277]
[1728138996697,0.002,62190.0,62189.0,0.062277]
[1728138996897,0.001,62190.0,62189.0,0.069277]
[1728138997693,0.002,62190.0,62189.0,0.069277]
[1728139006607,0.002,62190.0,62189.0,0.430077]
[1728139010710,0.002,62190.0,62189.0,0.069277]
[1728139013905,0.002,62190.0,62189.0,0.013]
[1728139013906,0.058276,62190.0,62189.0,0.013]
[1728139014105,0.058276,62190.0,62189.0,0.133]
[1728139015819,0.058276,62190.0,62189.0,0.189277]
[1728139016919,0.058276,62190.0,62189.0,0.23746158]
[1728139022119,0.058276,62190.0,62189.0,0.26680038]
[1728139023409,0.08933381,62190.0,62189.0,0.2186158]
[1728139024422,0.03305781,62190.0,62189.0,0.2186158]
[1728139024909,0.002,62190.0,62189.0,0.2186158]
[1728139031520,0.002,62190.0,62189.0,0.28036957]
[1728139031829,0.002,62190.0,62189.0,0.2161158]
[1728139032226,0.002,62190.0,62189.0,0.28039181]
[1728139032930,0.002,62190.0,62189.0,0.2161158]
[1728139033121,0.002,62190.0,62189.0,0.28039072]
[1728139033824,0.002,62190.0,62189.0,1.36279072]
[1728139034016,0.002,62190.0,62189.0,1.2985158]
[1728139034618,0.002,62190.0,62189.0,0.6985158]
[1728139036027,0.002,62190.0,62189.0,1.0593158]
[1728139039017,0.002,62190.0,62189.0,0.5769158]
[1728139040727,0.002,62190.0,62189.0,0.427577]
[1728139040922,0.03305567,62190.0,62189.0,0.547577]
[1728139041130,0.002,62190.0,62189.0,0.186777]
[1728139041625,0.002,62190.0,62189.0,0.0105]
[1728139041828,0.178276,62190.0,62189.0,0.0105]
[1728139042033,0.24870503,62190.0,62185.0,0.32143]
[1728139042233,0.056279,62186.0,62185.0,0.32143]
[1728139042423,0.08733527,62186.0,62185.0,0.32143]
[1728139042735,0.15123527,62186.0,62185.0,0.32143]
[1728139044332,0.15223527,62186.0,62185.0,0.32243]
[1728139044525,0.15223527,62186.0,62185.0,0.44243]
[1728139044728,0.09595627,62186.0,62185.0,0.44243]
[1728139045227,0.0659,62186.0,62185.0,0.44243]
[1728139046534,0.0659,62186.0,62185.0,0.49060943]
[1728139047328,0.0659,62186.0,62185.0,0.44243]
[1728139050037,0.122179,62186.0,62185.0,0.32243]
[1728139052938,0.0659,62186.0,62185.0,0.49871]
[1728139056036,0.0659,62186.0,62185.0,0.32243]
[1728139056037,0.122179,62186.0,62185.0,0.32243]
[1728139064553,0.15323901,62186.0,62185.0,0.32243]
[1728139064951,0.122179,62186.0,62185.0,0.32243]
[1728139065147,0.15323901,62186.0,62185.0,0.32243]
[1728139066039,0.1532395,62186.0,62185.0,0.32243]
[1728139069655,0.122179,62186.0,62185.0,0.32243]
[1728139071449,0.122179,62186.0,62185.0,0.37060943]
[1728139071654,0.122179,62186.0,62185.0,0.32243]
[1728139071851,0.122179,62186.0,62185.0,0.37060943]
[1728139072050,0.122179,62186.0,62185.0,0.32243]
[1728139072260,0.122179,62186.0,62185.0,0.37060943]
[1728139072751,0.122179,62186.0,62185.0,0.32243]
[1728139073152,0.122179,62186.0,62185.0,0.37060943]
[1728139075557,0.122179,62186.0,62185.0,0.32243]
[1728139075749,0.122179,62186.0,62185.0,0.37871]
[1728139077050,0.002,62186.0,62185.0,0.49871]
[1728139078880,0.002,62186.0,62185.0,0.37871]
[1728139083376,0.03305947,62186.0,62185.0,0.37871]
[1728139083584,0.002,62186.0,62185.0,0.37871]
[1728139083979,0.058279,62186.0,62185.0,0.37871]
[1728139085894,0.002,62186.0,62185.0,0.37871]
[1728139090286,0.002,62186.0,62185.0,0.42696239]
[1728139091785,0.0330595,62186.0,62185.0,0.37871]
[1728139094487,0.0330595,62186.0,62185.0,0.49871]
[1728139095690,0.03305951,62186.0,62185.0,0.49871]
[1728139097201,0.002,62186.0,62185.0,0.53141]
[1728139097400,0.002,62186.0,62185.0,0.44076252]
[1728139097588,0.002,62186.0,62185.0,0.56076252]
[1728139108710,0.0112,62191.0,62190.0,0.056276]
[1728139109009,0.0112,62196.0,62195.0,0.056271]
[1728139109207,0.05868029,62199.0,62195.0,0.176271]
[1728139109400,0.05868029,62199.0,62198.0,0.12]
[1728139110505,0.06368029,62199.0,62198.0,0.12]
[1728139111208,0.06668029,62199.0,62198.0,0.121]
[1728139111410,0.06668029,62199.0,62198.0,0.122]
[1728139111411,0.07368029,62199.0,62198.0,0.122]
[1728139113615,0.07368029,62199.0,62198.0,0.002]
[1728139113811,0.10473429,62199.0,62198.0,0.002]
[1728139114606,0.22473429,62199.0,62198.0,0.002]
[1728139115408,0.26410386,62199.0,62198.0,0.002]
[1728139116298,0.26410386,62199.0,62195.0,0.3608]
[1728139116500,0.17627,62196.0,62195.0,0.3608]
[1728139116699,0.207324,62196.0,62195.0,0.3608]
[1728139116910,0.24669525,62196.0,62195.0,0.3608]
[1728139117915,0.212324,62196.0,62195.0,0.3608]
[1728139118415,0.156054,62196.0,62191.0,0.3608]
[1728139118615,0.12,62192.0,62191.0,0.3608]
[1728139118802,0.151054,62192.0,62191.0,0.3608]
[1728139119008,0.207328,62192.0,62191.0,0.3608]
[1728139120002,0.207328,62192.0,62189.0,0.056277]
[1728139120003,0.208328,62192.0,62189.0,0.056277]
[1728139120208,0.031054,62191.0,62189.0,0.056277]
[1728139121317,0.031054,62191.0,62189.0,0.057277]
[1728139121709,0.176274,62192.0,62189.0,0.057277]
[1728139122617,0.176274,62192.0,62190.0,0.056276]
[1728139123718,0.20585867,62192.0,62190.0,0.056276]
[1728139124223,0.20585867,62192.0,62191.0,0.056275]
[1728139127219,0.20685867,62192.0,62191.0,0.056275]
[1728139144626,0.08685867,62192.0,62191.0,0.056275]
[1728139145032,0.20685867,62192.0,62191.0,0.056275]
[1728139149134,0.20685867,62192.0,62190.0,0.04821245]
[1728139149135,0.20685867,62192.0,62188.0,0.0482572]
[1728139149331,0.20685867,62192.0,62186.0,0.3608]
[1728139149332,0.056279,62187.0,62186.0,0.4090572]
[1728139149929,0.056279,62187.0,62186.0,0.3608]
[1728139151136,0.056279,62187.0,62186.0,0.3658]
[1728139151432,0.056279,62187.0,62186.0,0.005]
[1728139151632,0.057279,62187.0,62186.0,0.009]
[1728139151839,0.08833866,62187.0,62186.0,0.009]
[1728139154838,0.08833869,62187.0,62186.0,0.009]
[1728139158838,0.057279,62187.0,62186.0,0.009]
[1728139167040,0.08834034,62187.0,62186.0,0.009]
[1728139169433,0.057279,62187.0,62186.0,0.009]
[1728139169647,0.08834055,62187.0,62186.0,0.009]
[1728139174050,0.057279,62187.0,62186.0,0.009]
[1728139182059,0.08834108,62187.0,62186.0,0.009]
[1728139182360,0.12771966,62187.0,62186.0,0.009]
[1728139188983,0.08834108,62187.0,62186.0,0.009]
[1728139189180,0.088342,62187.0,62186.0,0.009]
[1728139189973,0.08834201,62187.0,62186.0,0.009]
[1728139193977,0.44914201,62187.0,62186.0,0.009]
[1728139198789,0.44914327,62187.0,62186.0,0.009]
[1728139200594,0.4885264,62187.0,62186.0,0.009]
[1728139201194,0.44914327,62187.0,62186.0,0.009]
[1728139202298,0.44914473,62187.0,62186.0,0.009]
[1728139204099,0.68257779,62187.0,62186.0,0.009]
[1728139204599,0.53789235,62187.0,62186.0,0.009]
[1728139204795,0.68257779,62187.0,62186.0,0.009]
[1728139205486,1.62029235,62187.0,62186.0,0.009]
[1728139205699,1.16497779,62187.0,62186.0,0.009]
[1728139206393,0.80417779,62187.0,62186.0,0.009]
[1728139206596,1.16497779,62187.0,62186.0,0.009]
[1728139208194,1.16497779,62187.0,62186.0,0.007]
[1728139208195,1.76497779,62187.0,62186.0,0.007]
[1728139208594,1.62029235,62187.0,62186.0,0.007]
[1728139211690,1.76479665,62187.0,62186.0,0.007]
[1728139211891,1.71543234,62187.0,62186.0,0.007]
[1728139212100,1.93173149,62187.0,62186.0,0.007]
[1728139213008,1.21013149,62187.0,62186.0,0.007]
[1728139213207,1.93173149,62187.0,62186.0,0.007]
[1728139213901,1.21013149,62187.0,62186.0,0.007]
[1728139214102,1.93173149,62187.0,62186.0,0.007]
[1728139214702,2.12560245,62187.0,62186.0,0.007]
[1728139215105,1.16320245,62187.0,62186.0,0.007]
[1728139215299,1.01869815,62187.0,62186.0,0.007]
[1728139216500,0.96933149,62187.0,62186.0,0.007]
[1728139217306,0.84933149,62187.0,62186.0,0.007]
[1728139217704,0.96933149,62187.0,62186.0,0.007]
[1728139217894,0.9299463,62187.0,62186.0,0.007]
[1728139219212,0.4491463,62187.0,62186.0,0.007]
[1728139220200,0.3928673,62187.0,62186.0,0.007]
[1728139222708,0.5691463,62187.0,62186.0,0.007]
[1728139225407,0.56914309,62187.0,62186.0,0.007]
[1728139226709,0.538079,62187.0,62186.0,0.007]
[1728139228830,0.56914262,62187.0,62186.0,0.007]
[1728139236914,0.20834262,62187.0,62186.0,0.007]
[1728139237221,0.56914262,62187.0,62186.0,0.007]
[1728139239915,0.56914302,62187.0,62186.0,0.007]
[1728139241829,0.65788552,62187.0,62186.0,0.007]
[1728139242027,0.80244457,62187.0,62186.0,0.007]
[1728139242423,0.44164457,62187.0,62186.0,0.007]
[1728139242627,0.80244457,62187.0,62186.0,0.007]
[1728139243527,0.65788552,62187.0,62186.0,0.007]
[1728139244321,0.81862906,62187.0,62186.0,0.007]
[1728139245420,0.65788552,62187.0,62186.0,0.007]
[1728139248830,0.60852406,62187.0,62186.0,0.007]
[1728139254539,0.60852646,62187.0,62186.0,0.007]
[1728139256631,0.56914408,62187.0,62186.0,0.007]
[1728139256831,0.65788826,62187.0,62186.0,0.007]
[1728139260931,0.80254701,62187.0,62186.0,0.007]
[1728139261623,0.65788826,62187.0,62186.0,0.007]
[1728139262830,0.6578879,62187.0,62186.0,0.007]
[1728139263825,0.56914364,62187.0,62186.0,0.007]
[1728139266435,0.20834364,62187.0,62186.0,0.007]
[1728139269535,0.56914364,62187.0,62186.0,0.007]
[1728139271936,0.65788641,62187.0,62186.0,0.007]
[1728139272546,0.65788589,62187.0,62186.0,0.007]
[1728139272934,0.29708589,62187.0,62186.0,0.007]
[1728139273145,0.65788589,62187.0,62186.0,0.007]
[1728139274036,0.29708589,62187.0,62186.0,0.007]
[1728139274434,0.65788589,62187.0,62186.0,0.007]
[1728139277743,0.29708589,62187.0,62186.0,0.007]
[1728139277944,0.65788589,62187.0,62186.0,0.007]
[1728139278144,0.65788635,62187.0,62186.0,0.007]
[1728139279045,0.56914324,62187.0,62186.0,0.007]
[1728139282240,0.56914302,62187.0,62186.0,0.007]
[1728139282549,0.20834302,62187.0,62186.0,0.007]
[1728139282845,0.56914302,62187.0,62186.0,0.007]
[1728139286648,0.20834302,62187.0,62186.0,0.007]
[1728139286953,0.56914302,62187.0,62186.0,0.007]
[1728139287155,0.538079,62187.0,62186.0,0.007]
[1728139287346,0.20834322,62187.0,62186.0,0.007]
[1728139287547,0.56914322,62187.0,62186.0,0.007]
[1728139290249,0.20834322,62187.0,62186.0,0.007]
[1728139290451,0.56914322,62187.0,62186.0,0.007]
[1728139291452,0.44914322,62187.0,62186.0,0.007]
[1728139293052,0.48852372,62187.0,62186.0,0.007]
[1728139293558,0.12772372,62187.0,62186.0,0.007]
[1728139293759,0.48852372,62187.0,62186.0,0.007]
[1728139293953,0.5378847,62187.0,62186.0,0.007]
[1728139294352,0.1770847,62187.0,62186.0,0.007]
[1728139294760,0.5378847,62187.0,62186.0,0.007]
[1728139296658,0.1770847,62187.0,62186.0,0.007]
[1728139297159,0.53788388,62187.0,62186.0,0.007]
[1728139301971,0.48852292,62187.0,62186.0,0.007]
[1728139302766,0.12772292,62187.0,62186.0,0.007]
[1728139302966,0.48852292,62187.0,62186.0,0.007]
[1728139303467,0.44914252,62187.0,62186.0,0.007]
[1728139303657,0.48852282,62187.0,62186.0,0.007]
[1728139304967,0.12772282,62187.0,62186.0,0.007]
[1728139305168,0.48852282,62187.0,62186.0,0.007]
[1728139305962,0.44914252,62187.0,62186.0,0.007]
[1728139306962,0.48852285,62187.0,62186.0,0.007]
[1728139307960,0.12772285,62187.0,62186.0,0.007]
[1728139308171,0.48852285,62187.0,62186.0,0.007]
[1728139308671,0.44914252,62187.0,62186.0,0.007]
[1728139309266,0.08834252,62187.0,62186.0,0.007]
[1728139309572,0.44914252,62187.0,62186.0,0.007]
[1728139310970,0.08834252,62187.0,62186.0,0.007]
[1728139311466,0.44914252,62187.0,62186.0,0.007]
[1728139312066,0.08834252,62187.0,62186.0,0.007]
[1728139312264,0.44914252,62187.0,62186.0,0.007]
[1728139312667,0.08834252,62187.0,62186.0,0.007]
[1728139312867,0.44914252,62187.0,62186.0,0.007]
[1728139313073,0.08834252,62187.0,62186.0,0.007]
[1728139313376,0.44914252,62187.0,62186.0,0.007]
[1728139313673,0.08834252,62187.0,62186.0,0.007]
[1728139313876,0.44914252,62187.0,62186.0,0.007]
[1728139314076,0.08834252,62187.0,62186.0,0.007]
[1728139314376,0.44914252,62187.0,62186.0,0.007]
[1728139316978,0.48852297,62187.0,62186.0,0.007]
[1728139317783,0.12772297,62187.0,62186.0,0.007]
[1728139318074,0.17708369,62187.0,62186.0,0.007]
[1728139318780,0.53788369,62187.0,62186.0,0.007]
[1728139320775,0.50682008,62187.0,62186.0,0.007]
[1728139320976,0.53788361,62187.0,62186.0,0.007]
[1728139323374,0.17708361,62187.0,62186.0,0.007]
[1728139323585,0.53788361,62187.0,62186.0,0.007]
[1728139323970,0.44914253,62187.0,62186.0,0.007]
[1728139325069,0.44914221,62187.0,62186.0,0.007]
[1728139326171,0.3608,62195.0,62186.0,0.007]
[1728139326172,0.0112,62194.0,62186.0,1.238279]
[1728139326387,0.0112,62194.0,62193.0,0.176273]
[1728139326674,0.0112,62199.0,62198.0,0.056269]
[1728139326873,0.00241265,62200.0,62198.0,0.056269]
[1728139326874,0.00241265,62200.0,62199.0,0.176268]
[1728139327471,0.00241265,62200.0,62199.0,0.22445107]
[1728139327667,0.00241265,62200.0,62199.0,0.176268]
[1728139328276,0.01041265,62200.0,62199.0,0.176268]
[1728139328472,0.01941265,62200.0,62199.0,0.176268]
[1728139328976,0.01641265,62200.0,62199.0,0.176268]
[1728139330181,0.01341265,62200.0,62199.0,0.177268]
[1728139337282,0.044466,62200.0,62199.0,0.177268]
[1728139339085,0.01341265,62200.0,62199.0,0.177268]
[1728139343983,0.492,62205.0,62199.0,0.177268]
[1728139343984,0.0112,62205.0,62199.0,1.259588]
[1728139344190,0.0112,62205.0,62204.0,0.176263]
[1728139344387,0.0037,62212.0,62205.0,0.056262]
[1728139344593,0.0024116,62216.0,62213.0,0.056255]
[1728139344792,0.03177579,62216.0,62214.0,0.176254]
[1728139344988,0.0024116,62216.0,62214.0,0.176254]
[1728139345693,0.0024116,62216.0,62215.0,0.056253]
[1728139346394,0.3608,62226.0,62215.0,1.0822]
[1728139346588,0.3608,62226.0,62223.0,0.12]
[1728139346785,0.3608,62226.0,62220.0,0.056248]
[1728139347087,0.07039839,62225.0,62220.0,0.056248]
[1728139347285,0.12,62223.0,62220.0,0.056248]
[1728139347480,0.03104344,62222.0,62220.0,0.056248]
[1728139348289,0.03104344,62222.0,62220.0,0.057248]
[1728139348592,0.03704344,62222.0,62220.0,0.058248]
[1728139348795,0.03104344,62221.0,62220.0,0.058248]
[1728139349698,0.03104344,62221.0,62220.0,0.001]
[1728139349994,0.03104344,62221.0,62220.0,0.002]
[1728139350391,0.04004344,62221.0,62220.0,0.002]
[1728139350993,0.04004344,62221.0,62220.0,0.001]
[1728139351187,0.04804344,62221.0,62220.0,0.002]
[1728139352492,0.10429144,62221.0,62220.0,0.002]
[1728139354097,0.017,62221.0,62220.0,0.002]
[1728139362504,0.08740206,62221.0,62220.0,0.002]
[1728139362700,0.15110206,62221.0,62220.0,0.002]
[1728139364700,0.20735006,62221.0,62220.0,0.002]
[1728139369299,0.136948,62221.0,62220.0,0.002]
[1728139370016,0.0807,62221.0,62220.0,0.002]
[1728139370711,0.11174551,62221.0,62220.0,0.002]
[1728139371117,0.0807,62221.0,62220.0,0.002]
[1728139371309,0.1117453,62221.0,62220.0,0.002]
[1728139375104,0.1679933,62221.0,62220.0,0.002]
[1728139375320,0.32735243,62221.0,62220.0,0.002]
[1728139375608,0.32735228,62221.0,62220.0,0.002]
[1728139377207,0.88226126,62221.0,62220.0,0.002]
[1728139379317,0.73748677,62221.0,62220.0,0.002]
[1728139380721,0.88226126,62221.0,62220.0,0.002]
[1728139381821,0.76226126,62221.0,62220.0,0.002]
[1728139382819,0.61748677,62221.0,62220.0,0.002]
[1728139383317,0.76226126,62221.0,62220.0,0.002]
[1728139384212,0.81990729,62221.0,62220.0,0.002]
[1728139384414,0.6751328,62221.0,62220.0,0.002]
[1728139385625,0.3143328,62221.0,62220.0,0.002]
[1728139385921,0.79430121,62221.0,62220.0,0.002]
[1728139386121,0.6751328,62221.0,62220.0,0.002]
[1728139387726,0.3143328,62221.0,62220.0,0.002]
[1728139387920,0.61748677,62221.0,62220.0,0.002]
[1728139388228,0.6751328,62221.0,62220.0,0.002]
[1728139391617,0.56815228,62221.0,62220.0,0.002]
[1728139392226,0.5287933,62221.0,62220.0,0.002]
[1728139397623,0.5287933,62221.0,62215.0,0.0112]
[1728139397624,0.056252,62216.0,62215.0,0.0112]
[1728139397827,0.056252,62216.0,62209.0,0.0043]
[1728139397828,0.056252,62216.0,62209.0,0.0112]
[1728139398030,0.056252,62216.0,62208.0,0.3645]
[1728139398031,0.07040607,62215.0,62208.0,0.3608]
[1728139398230,0.07040607,62215.0,62209.0,0.056259]
[1728139398729,0.07040607,62215.0,62210.0,0.056257]
[1728139400516,0.056254,62214.0,62210.0,0.056257]
[1728139400721,0.07040607,62213.0,62210.0,0.056257]
[1728139400924,0.07040607,62213.0,62209.0,0.006]
[1728139401121,0.056258,62210.0,62209.0,0.003]
[1728139401322,0.0873033,62210.0,62209.0,0.003]
[1728139401622,0.0873033,62210.0,62208.0,0.3608]
[1728139401924,0.0310453,62209.0,62208.0,0.3608]
[1728139402134,0.0873043,62209.0,62208.0,0.3608]
[1728139402923,0.0873043,62209.0,62205.0,0.537062]
[1728139403124,0.0310453,62208.0,62205.0,0.537062]
[1728139404023,0.0873053,62208.0,62205.0,0.537062]
[1728139404330,0.0310453,62207.0,62205.0,0.537062]
[1728139404932,0.0310453,62207.0,62205.0,0.538062]
[1728139406033,0.0310453,62207.0,62205.0,0.177262]
[1728139406337,0.12666942,62207.0,62205.0,0.121]
[1728139406524,0.12666942,62206.0,62205.0,0.121]
[1728139408431,0.12667409,62206.0,62205.0,0.121]
[1728139411734,0.07041309,62206.0,62205.0,0.177262]
[1728139411933,0.03104992,62206.0,62205.0,0.177262]
[1728139412144,0.03104992,62211.0,62205.0,0.121]
[1728139412432,0.3608,62212.0,62210.0,0.12]
[1728139412639,0.03104846,62211.0,62210.0,0.12]
[1728139412940,0.07040977,62211.0,62210.0,0.12]
[1728139414340,0.53467798,62212.0,62210.0,0.12]
[1728139414536,0.39000478,62212.0,62210.0,0.12]
[1728139414835,0.005,62211.0,62210.0,0.12]
[1728139416629,0.005,62211.0,62210.0,0.122]
[1728139416830,0.39500478,62212.0,62210.0,0.122]
[1728139417435,0.39000478,62212.0,62210.0,0.123]
[1728139417940,0.39000478,62212.0,62210.0,0.122]
[1728139418132,0.39000478,62212.0,62210.0,0.123]
[1728139419734,0.0037,62217.0,62213.0,0.056255]
[1728139419942,0.3632116,62219.0,62216.0,0.12]
[1728139420248,0.03104707,62218.0,62216.0,0.12]
[1728139420451,0.4194616,62219.0,62216.0,0.12]
[1728139420452,0.03104707,62217.0,62216.0,0.12]
[1728139421141,0.03204707,62217.0,62216.0,0.12]
[1728139421332,0.04035701,62217.0,62215.0,0.056253]
[1728139421538,0.07040408,62216.0,62215.0,0.056253]
[1728139421943,0.22505221,62216.0,62215.0,0.056253]
[1728139422243,0.17572027,62216.0,62215.0,0.056253]
[1728139422438,0.18403021,62216.0,62215.0,0.056253]
[1728139423038,0.22505221,62216.0,62215.0,0.056253]
[1728139423245,0.11973602,62216.0,62215.0,0.056253]
[1728139423731,0.26440922,62216.0,62215.0,0.056253]
[1728139424250,0.27140922,62216.0,62215.0,0.056253]
[1728139424946,0.07740408,62216.0,62215.0,0.056253]
[1728139426051,0.07740408,62216.0,62214.0,0.12]
[1728139426244,0.07040408,62215.0,62214.0,0.12]
[1728139427247,0.07340408,62215.0,62214.0,0.12]
[1728139427440,0.07340512,62215.0,62214.0,0.12]
[1728139427844,0.07340512,62215.0,62212.0,0.056256]
[1728139428145,0.07040512,62214.0,62213.0,0.12]
[1728139429251,0.07140512,62214.0,62213.0,0.12]
[1728139429550,0.03204641,62214.0,62213.0,0.12]
[1728139430149,0.03404641,62214.0,62213.0,0.12]
[1728139432242,0.003,62214.0,62213.0,0.12]
[1728139432951,0.03404741,62214.0,62213.0,0.12]
[1728139436547,0.003,62214.0,62213.0,0.12]
[1728139436952,0.07340739,62214.0,62213.0,0.12]
[1728139440555,0.003,62214.0,62213.0,0.12]
[1728139441247,0.003,62214.0,62209.0,0.0112]
[1728139441248,0.21808059,62214.0,62209.0,0.0112]
[1728139441445,0.21808059,62214.0,62208.0,0.3608]